fUSD/lending_fUSD_20260612
["ID","MTS","AMOUNT","RATE_DAILY","PERIOD"]
[424864213,1781213438000,-181.66088399,0.00029504,7]
[424864220,1781213438000,-555.98413013,0.00029504,7]
[424864217,1781213438000,-244.64774395,0.00029504,7]
[424864234,1781213438000,-240.86109358,0.00029507,7]
[424864231,1781213438000,-489.56703963,0.00029507,7]
[424864235,1781213438000,-211.25981778,0.00029507,7]
[424864233,1781213438000,-477.73817541,0.00029507,7]
[424864232,1781213438000,-538.05470561,0.00029507,7]
[424864240,1781213438000,-468.16593869,0.00029507,7]
[424864237,1781213438000,-208.97055616,0.00029507,7]
[424864273,1781213438000,-600.88936551,0.000299,2]
[424864334,1781213438000,-481.72218717,0.00030089,7]
[424864275,1781213438000,-600.88936551,0.000299,2]
[424864306,1781213438000,-427.82696669,0.00030078,7]
[424864310,1781213438000,-651.58703379,0.00030078,7]
[424864308,1781213438000,-371.43930954,0.00030078,7]
[424864311,1781213438000,-741.31217351,0.00030078,7]
[424864309,1781213438000,-179.09813948,0.00030078,7]
[424864312,1781213438000,-754.80932193,0.00030078,7]
[424864317,1781213438000,-668.45226691,0.00030082,7]
[424864314,1781213438000,-302.95418279,0.00030078,7]
[424864313,1781213438000,-727.43578472,0.00030078,7]
[424864315,1781213438000,-396.72953284,0.00030078,7]
[424864318,1781213438000,-652.75605283,0.00030082,7]
[424864316,1781213438000,-652.44344242,0.00030082,7]
[424864320,1781213438000,-636.98423388,0.00030082,7]
[424864329,1781213438000,-604.88620433,0.00030082,7]
[424864330,1781213438000,-354.98947477,0.00030082,7]
[424864319,1781213438000,-717.40627414,0.00030082,7]
[424864274,1781213438000,-600.88936551,0.000299,2]
[424864326,1781213438000,-253.32091426,0.00030082,7]
[424864325,1781213438000,-569.77272854,0.00030082,7]
[424864321,1781213438000,-422.51963555,0.00030082,7]
[424864323,1781213438000,-417.94111231,0.00030082,7]
[424864324,1781213438000,-414.35785599,0.00030082,5]
[424864327,1781213438000,-624.22125159,0.00030082,7]
[424864328,1781213438000,-490.38601512,0.00030082,7]
[424864331,1781213438000,-292.74392776,0.00030082,7]
[424864333,1781213438000,-201.15418835,0.00030088,7]
[424864332,1781213438000,-424.56355346,0.00030088,7]
[424864304,1781213438000,-425.24853701,0.00030078,7]
[424864303,1781213438000,-330.70243617,0.00030078,7]
[424864322,1781213438000,-613.15076228,0.00030082,2]
[424864302,1781213438000,-344.97576152,0.00030078,7]
[424864305,1781213438000,-485.63641763,0.00030078,7]
[424864276,1781213438000,-600.88936551,0.000299,2]
[424864284,1781213438000,-1000.0,0.0003,2]
[424864278,1781213438000,-600.88936551,0.000299,2]
[424864280,1781213438000,-600.88936551,0.000299,2]
[424864283,1781213438000,-55732.15899853,0.0003,7]
[424864279,1781213438000,-600.88936551,0.000299,2]
[424864281,1781213438000,-1000.0,0.00029983,7]
[424864282,1781213438000,-1590.00199127,0.00029983,7]
[424864287,1781213438000,-1000.0,0.0003,2]
[424864285,1781213438000,-18577.38633284,0.0003,7]
[424864290,1781213438000,-194.26899729,0.00030078,7]
[424864289,1781213438000,-933.0,0.0003003,30]
[424864277,1781213438000,-600.88936551,0.000299,2]
[424864286,1781213438000,-650.0,0.0003,2]
[424864301,1781213438000,-157.05731674,0.00030078,7]
[424864293,1781213438000,-321.27317265,0.00030078,7]
[424864299,1781213438000,-271.75815348,0.00030078,7]
[424864298,1781213438000,-427.33501934,0.00030078,7]
[424864300,1781213438000,-408.95943969,0.00030078,7]
[424864307,1781213438000,-221.93409433,0.00030078,7]
[424864296,1781213438000,-363.32176798,0.00030078,7]
[424864297,1781213438000,-410.81546729,0.00030078,7]
[424864292,1781213438000,-457.77692956,0.00030078,7]
[424864294,1781213438000,-494.84858342,0.00030078,7]
[424864288,1781213438000,-215.95576085,0.0003,7]
[424864295,1781213438000,-461.53249869,0.00030078,7]
[424864291,1781213438000,-417.50218907,0.00030078,7]
[424864388,1781213439000,-1054.6,0.00030239,2]
[424864384,1781213439000,-472.0,0.00030154,30]
[424864387,1781213439000,-730.19,0.00030154,7]
[424864386,1781213439000,-279.0,0.00030154,30]
[424864389,1781213439000,-537.6845,0.0003026,2]
[424864366,1781213439000,-199.0,0.00030154,30]
[424864390,1781213439000,-500.0,0.00030476,20]
[424864395,1781213439000,-150.0,0.00030646,2]
[424864385,1781213439000,-260.0,0.00030154,30]
[424864392,1781213439000,-521.0,0.00030525,13]
[424864396,1781213439000,-832.19826839,0.00030653,7]
[424864394,1781213439000,-6051.0,0.00030646,10]
[424864393,1781213439000,-4055.67,0.00030589,120]
[424864398,1781213439000,-926.64021689,0.00030653,7]
[424864364,1781213439000,-241.0,0.00030154,30]
[424864391,1781213439000,-500.0,0.00030476,20]
[424864361,1781213439000,-1292.0,0.00030154,30]
[424864340,1781213439000,-152.0,0.00030149,30]
[424864345,1781213439000,-345.0,0.00030149,30]
[424864401,1781213439000,-835.56533363,0.00030656,7]
[424864335,1781213439000,-199.0,0.000301,7]
[424864341,1781213439000,-364.0,0.00030149,30]
[424864336,1781213439000,-231.27,0.00030137,5]
[424864339,1781213439000,-308.77,0.00030137,30]
[424864338,1781213439000,-152.3706,0.00030137,2]
[424864337,1781213439000,-186.00679176,0.00030137,40]
[424864359,1781213439000,-802.0,0.00030154,30]
[424864343,1781213439000,-248.0,0.00030149,30]
[424864353,1781213439000,-3000.0,0.00030151,30]
[424864357,1781213439000,-756.0,0.00030151,30]
[424864355,1781213439000,-1635.0,0.00030151,30]
[424864342,1781213439000,-389.0,0.00030149,30]
[424864344,1781213439000,-269.0,0.00030149,30]
[424864349,1781213439000,-3000.0,0.00030151,30]
[424864347,1781213439000,-3000.0,0.00030151,30]
[424864351,1781213439000,-3000.0,0.00030151,30]
[424864402,1781213439000,-815.94506604,0.00030656,7]
[424864397,1781213439000,-814.48379224,0.00030653,7]
[424864400,1781213439000,-943.51165241,0.00030653,7]
[424864423,1781213439000,-151.0,0.00031102,7]
[424864424,1781213439000,-151.0,0.00031102,30]
[424864436,1781213439000,-364.0,0.00031149,30]
[424864425,1781213439000,-151.0,0.00031102,30]
[424864426,1781213439000,-151.0,0.00031102,30]
[424864430,1781213439000,-151.0,0.00031102,7]
[424864428,1781213439000,-151.0,0.00031102,30]
[424864415,1781213439000,-151.0,0.00030851,7]
[424864432,1781213439000,-151.0,0.00031102,7]
[424864429,1781213439000,-174.280658,0.00031102,30]
[424864434,1781213439000,-151.0,0.00031102,7]
[424864433,1781213439000,-151.0,0.00031102,7]
[424864435,1781213439000,-152.0,0.00031149,30]
[424864437,1781213439000,-389.0,0.00031149,30]
[424864439,1781213439000,-269.0,0.00031149,30]
[424864399,1781213439000,-909.2947309,0.00030653,7]
[424864431,1781213439000,-151.0,0.00031102,7]
[424864420,1781213439000,-382.0,0.00031102,2]
[424864427,1781213439000,-151.0,0.00031102,30]
[424864418,1781213439000,-232.18,0.00031096,5]
[424864421,1781213439000,-1274.0,0.00031102,2]
[424864404,1781213439000,-796.23029235,0.00030656,7]
[424864403,1781213439000,-896.75784268,0.00030656,7]
[424864438,1781213439000,-248.0,0.00031149,30]
[424864407,1781213439000,-756.10775541,0.00030656,7]
[424864406,1781213439000,-780.27656449,0.00030656,7]
[424864405,1781213439000,-766.43845285,0.00030656,2]
[424864410,1781213439000,-3643.0,0.00030725,2]
[424864408,1781213439000,-167.46807175,0.00030709,2]
[424864413,1781213439000,-154.024201,0.00030851,7]
[424864411,1781213439000,-150.0,0.00030841,2]
[424864412,1781213439000,-151.0,0.00030851,7]
[424864416,1781213439000,-151.0,0.00030851,7]
[424864414,1781213439000,-155.303787,0.00030851,7]
[424864417,1781213439000,-319.0,0.00031029,2]
[424864419,1781213439000,-199.0,0.000311,7]
[424864409,1781213439000,-158.55225597,0.00030712,30]
[424864422,1781213439000,-1227.0,0.00031102,2]
[424864466,1781213440000,-996.39760297,0.00031518,7]
[424864472,1781213440000,-9077.0,0.00031872,10]
[424864470,1781213440000,-521.0,0.00031778,14]
[424864479,1781213440000,-1860.86,0.00031937,2]
[424864465,1781213440000,-955.47635082,0.00031518,7]
[424864467,1781213440000,-907.32930649,0.00031518,7]
[424864469,1781213440000,-174.7,0.00031695,2]
[424864473,1781213440000,-500.0,0.00031918,2]
[424864471,1781213440000,-161.0,0.00031872,3]
[424864475,1781213440000,-1000.0,0.00031937,2]
[424864491,1781213440000,-212.97669286,0.00032,120]
[424864478,1781213440000,-1000.0,0.00031937,2]
[424864476,1781213440000,-1000.0,0.00031937,2]
[424864477,1781213440000,-1000.0,0.00031937,2]
[424864480,1781213440000,-1000.0,0.00031937,2]
[424864482,1781213440000,-1000.0,0.00031937,2]
[424864481,1781213440000,-1000.0,0.00031937,2]
[424864489,1781213440000,-1291.29,0.00031937,2]
[424864483,1781213440000,-1000.0,0.00031937,2]
[424864492,1781213440000,-1322.24148291,0.00032,120]
[424864468,1781213440000,-166.91607756,0.00031644,40]
[424864474,1781213440000,-1000.0,0.00031937,2]
[424864462,1781213440000,-1132.21398289,0.00031515,7]
[424864442,1781213440000,-802.0,0.00031154,30]
[424864463,1781213440000,-1002.67840036,0.00031518,7]
[424864440,1781213440000,-345.0,0.00031149,30]
[424864447,1781213440000,-260.0,0.00031154,30]
[424864446,1781213440000,-472.0,0.00031154,30]
[424864444,1781213440000,-241.0,0.00031154,30]
[424864485,1781213440000,-1000.0,0.00031937,2]
[424864441,1781213440000,-521.0,0.00031152,14]
[424864443,1781213440000,-1292.0,0.00031154,30]
[424864449,1781213440000,-1000.0,0.000312,7]
[424864448,1781213440000,-279.0,0.00031154,30]
[424864451,1781213440000,-150.313189,0.00031319,2]
[424864452,1781213440000,-215.2,0.0003132,2]
[424864450,1781213440000,-560.49449867,0.00031273,2]
[424864453,1781213440000,-200.88,0.0003132,2]
[424864455,1781213440000,-4055.67,0.00031356,120]
[424864456,1781213440000,-540.65875253,0.0003139,22]
[424864458,1781213440000,-168.57,0.00031507,30]
[424864454,1781213440000,-2602.15,0.0003132,2]
[424864457,1781213440000,-308.77,0.00031507,30]
[424864459,1781213440000,-998.63792207,0.00031515,7]
[424864460,1781213440000,-1111.96826026,0.00031515,7]
[424864464,1781213440000,-979.13407925,0.00031518,7]
[424864461,1781213440000,-1091.15367708,0.00031515,7]
[424864488,1781213440000,-1000.0,0.00031937,2]
[424864445,1781213440000,-199.0,0.00031154,30]
[424864484,1781213440000,-1000.0,0.00031937,2]
[424864516,1781213440000,-232.7,0.00032055,5]
[424864520,1781213440000,-152.0,0.00032149,30]
[424864527,1781213440000,-1292.0,0.00032154,30]
[424864523,1781213440000,-248.0,0.00032149,30]
[424864519,1781213440000,-2274.84027007,0.00032132,2]
[424864518,1781213440000,-199.0,0.000321,7]
[424864521,1781213440000,-364.0,0.00032149,30]
[424864524,1781213440000,-269.0,0.00032149,30]
[424864522,1781213440000,-389.0,0.00032149,30]
[424864525,1781213440000,-345.0,0.00032149,30]
[424864517,1781213440000,-152.603067,0.00032055,7]
[424864526,1781213440000,-802.0,0.00032154,30]
[424864532,1781213440000,-279.0,0.00032154,30]
[424864530,1781213440000,-472.0,0.00032154,30]
[424864534,1781213440000,-1054.6,0.0003221,5]
[424864529,1781213440000,-199.0,0.00032154,30]
[424864531,1781213440000,-260.0,0.00032154,30]
[424864533,1781213440000,-423.2,0.000322,7]
[424864536,1781213440000,-100000.0,0.00032232,120]
[424864537,1781213440000,-100000.0,0.00032232,90]
[424864538,1781213440000,-56899.0796817,0.00032232,60]
[424864486,1781213440000,-1000.0,0.00031937,2]
[424864528,1781213440000,-241.0,0.00032154,30]
[424864510,1781213440000,-185.87068678,0.00032,120]
[424864535,1781213440000,-158.55225595,0.00032228,30]
[424864515,1781213440000,-700.0,0.00032,2]
[424864513,1781213440000,-167.76592613,0.00032,120]
[424864487,1781213440000,-1000.0,0.00031937,2]
[424864494,1781213440000,-186.27637767,0.00032,120]
[424864504,1781213440000,-205.39761631,0.00032,120]
[424864499,1781213440000,-426.29450614,0.00032,120]
[424864495,1781213440000,-160.76412737,0.00032,120]
[424864501,1781213440000,-362.71485314,0.00032,120]
[424864493,1781213440000,-187.69831663,0.00032,120]
[424864502,1781213440000,-183.35346164,0.00032,120]
[424864498,1781213440000,-328.075539,0.00032,120]
[424864497,1781213440000,-190.70801846,0.00032,120]
[424864490,1781213440000,-172.14,0.00031963,2]
[424864496,1781213440000,-223.6879015,0.00032,120]
[424864503,1781213440000,-387.77751763,0.00032,120]
[424864505,1781213440000,-178.25990567,0.00032,120]
[424864508,1781213440000,-188.4317516,0.00032,120]
[424864507,1781213440000,-168.3978096,0.00032,120]
[424864506,1781213440000,-195.495558,0.00032,120]
[424864514,1781213440000,-644.87356391,0.00032,120]
[424864509,1781213440000,-174.25490651,0.00032,120]
[424864511,1781213440000,-172.54293024,0.00032,120]
[424864500,1781213440000,-184.54162468,0.00032,120]
[424864512,1781213440000,-199.36769843,0.00032,120]
[424864544,1781213441000,-1254.41808677,0.00032327,7]
[424864543,1781213441000,-15328.87487763,0.00032327,7]
[424864542,1781213441000,-82810.49872525,0.00032232,30]
[424864540,1781213441000,-39069.71020069,0.00032232,60]
[424864541,1781213441000,-4031.21011761,0.00032232,60]
[424864574,1781213443000,-2319.72410669,0.00021572,2]
[424864575,1781213443000,-2405.55389863,0.0002212,2]
[424864572,1781213443000,-2157.14243826,0.00020476,2]
[424864579,1781213443000,-2781.82699784,0.00024312,2]
[424864584,1781213443000,-880.0,0.00029154,30]
[424864581,1781213443000,-2991.49051684,0.00025408,2]
[424864583,1781213443000,-6441.60196652,0.00027812,2]
[424864585,1781213443000,-1235.18214925,0.00029164,2]
[424864580,1781213443000,-2884.75459676,0.0002486,2]
[424864578,1781213443000,-2682.57183977,0.00023764,2]
[424864582,1781213443000,-324.31,0.0002755,2]
[424864586,1781213443000,-1280.88388877,0.00029164,2]
[424864596,1781213443000,-1842.0326633,0.00029164,2]
[424864577,1781213443000,-2586.85809042,0.00023216,2]
[424864587,1781213443000,-1328.27659266,0.00029164,2]
[424864576,1781213443000,-2494.55939288,0.00022668,2]
[424864573,1781213443000,-2236.95670847,0.00021024,2]
[424864550,1781213443000,-3078.38002779,0.00019744,2]
[424864563,1781213443000,-151.0,0.00019928,2]
[424864594,1781213443000,-1712.93078311,0.00029164,2]
[424864549,1781213443000,-2005.9555727,0.0001938,2]
[424864548,1781213443000,-1934.38338736,0.00018832,2]
[424864555,1781213443000,-151.0,0.00019928,2]
[424864551,1781213443000,-151.0,0.00019928,2]
[424864554,1781213443000,-2080.17592889,0.00019928,2]
[424864553,1781213443000,-151.0,0.00019928,2]
[424864552,1781213443000,-151.0,0.00019928,2]
[424864557,1781213443000,-151.0,0.00019928,2]
[424864569,1781213443000,-151.0,0.00019928,2]
[424864567,1781213443000,-151.0,0.00019928,2]
[424864568,1781213443000,-151.0,0.00019928,2]
[424864570,1781213443000,-151.0,0.00019928,2]
[424864571,1781213443000,-151.0,0.00019928,2]
[424864558,1781213443000,-151.0,0.00019928,2]
[424864566,1781213443000,-151.0,0.00019928,2]
[424864561,1781213443000,-151.0,0.00019928,2]
[424864565,1781213443000,-151.0,0.00019928,2]
[424864590,1781213443000,-1481.2378076,0.00029164,2]
[424864593,1781213443000,-1651.81367706,0.00029164,2]
[424864589,1781213443000,-1428.38747117,0.00029164,2]
[424864613,1781213443000,-5800.0,0.00032537,2]
[424864616,1781213443000,-5800.0,0.00032554,2]
[424864610,1781213443000,-5800.0,0.00032512,2]
[424864614,1781213443000,-5800.0,0.00032546,2]
[424864617,1781213443000,-5800.0,0.00032563,2]
[424864619,1781213443000,-5800.0,0.0003258,2]
[424864620,1781213443000,-5800.0,0.00032588,2]
[424864612,1781213443000,-5800.0,0.00032529,2]
[424864621,1781213443000,-423.2,0.000326,7]
[424864624,1781213443000,-1273.01262326,0.00032807,7]
[424864629,1781213443000,-1058.55085757,0.00032811,7]
[424864625,1781213443000,-1169.79146708,0.00032811,7]
[424864622,1781213443000,-255.0,0.00032753,3]
[424864623,1781213443000,-1320.91631337,0.00032807,7]
[424864628,1781213443000,-1162.46387014,0.00032811,7]
[424864588,1781213443000,-1377.42282658,0.00029164,2]
[424864626,1781213443000,-1142.32309246,0.00032811,7]
[424864618,1781213443000,-5800.0,0.00032571,2]
[424864627,1781213443000,-1114.72240929,0.00032811,7]
[424864615,1781213443000,-471.03,0.00032553,2]
[424864595,1781213443000,-1776.30922209,0.00029164,2]
[424864611,1781213443000,-5800.0,0.0003252,2]
[424864592,1781213443000,-1592.87721992,0.00029164,2]
[424864591,1781213443000,-1536.04360648,0.00029164,2]
[424864597,1781213443000,-1910.18787185,0.00029164,2]
[424864598,1781213443000,-1980.8648231,0.00029164,2]
[424864600,1781213443000,-600.88936551,0.000299,2]
[424864599,1781213443000,-2054.15682156,0.00029164,2]
[424864601,1781213443000,-610.43406966,0.00030808,2]
[424864603,1781213443000,-18577.38633284,0.00032327,7]
[424864605,1781213443000,-150.0,0.00032383,2]
[424864606,1781213443000,-423.2,0.000324,7]
[424864607,1781213443000,-521.0,0.00032404,15]
[424864604,1781213443000,-4055.67,0.00032342,120]
[424864602,1781213443000,-39148.86603413,0.00032327,7]
[424864609,1781213443000,-1013.1032934,0.000325,7]
[424864608,1781213443000,-167.46807175,0.00032448,2]
[424864657,1781213444000,-308.77,0.00032877,30]
[424864676,1781213444000,-199.0,0.00033,30]
[424864667,1781213444000,-160.76412737,0.00033,120]
[424864666,1781213444000,-187.69831663,0.00033,120]
[424864655,1781213444000,-807.280268,0.00032877,120]
[424864658,1781213444000,-25000.0,0.00032877,10]
[424864659,1781213444000,-200.0,0.000329,12]
[424864674,1781213444000,-387.77751763,0.00033,120]
[424864660,1781213444000,-423.2,0.000329,7]
[424864668,1781213444000,-223.6879015,0.00033,120]
[424864688,1781213444000,-521.0,0.0003303,16]
[424864665,1781213444000,-1322.24148291,0.00033,120]
[424864670,1781213444000,-328.075539,0.00033,120]
[424864673,1781213444000,-183.35346164,0.00033,120]
[424864669,1781213444000,-190.70801846,0.00033,120]
[424864672,1781213444000,-362.71485314,0.00033,120]
[424864678,1781213444000,-178.25990567,0.00033,120]
[424864680,1781213444000,-188.4317516,0.00033,120]
[424864677,1781213444000,-205.39761631,0.00033,120]
[424864682,1781213444000,-185.87068678,0.00033,120]
[424864662,1781213444000,-407.0,0.00032955,2]
[424864671,1781213444000,-426.29450614,0.00033,120]
[424864664,1781213444000,-212.97669286,0.00033,120]
[424864640,1781213444000,-157.611457,0.00032877,7]
[424864661,1781213444000,-407.0,0.00032955,2]
[424864631,1781213444000,-25000.0,0.00032842,10]
[424864630,1781213444000,-25000.0,0.00032833,10]
[424864633,1781213444000,-25000.0,0.00032851,10]
[424864632,1781213444000,-151.0,0.00032842,7]
[424864634,1781213444000,-25000.0,0.00032859,10]
[424864635,1781213444000,-25000.0,0.00032868,10]
[424864636,1781213444000,-730.19,0.00032872,30]
[424864639,1781213444000,-157.611457,0.00032877,7]
[424864637,1781213444000,-157.611457,0.00032877,7]
[424864638,1781213444000,-157.611457,0.00032877,7]
[424864641,1781213444000,-151.0,0.00032877,7]
[424864645,1781213444000,-151.0,0.00032877,7]
[424864646,1781213444000,-151.0,0.00032877,7]
[424864642,1781213444000,-151.0,0.00032877,7]
[424864644,1781213444000,-151.0,0.00032877,7]
[424864647,1781213444000,-157.635871,0.00032877,7]
[424864648,1781213444000,-157.635871,0.00032877,7]
[424864651,1781213444000,-1570.0,0.00032877,30]
[424864649,1781213444000,-157.635871,0.00032877,7]
[424864643,1781213444000,-151.0,0.00032877,7]
[424864650,1781213444000,-157.635871,0.00032877,7]
[424864663,1781213444000,-426.80374489,0.00032955,2]
[424864681,1781213444000,-174.25490651,0.00033,120]
[424864679,1781213444000,-168.3978096,0.00033,120]
[424864683,1781213444000,-172.54293024,0.00033,120]
[424864719,1781213444000,-244.82,0.00033699,30]
[424864713,1781213444000,-400.0,0.00033496,2]
[424864714,1781213444000,-33371.7516,0.00033501,28]
[424864715,1781213444000,-152.5314,0.00033649,2]
[424864712,1781213444000,-400.0,0.00033496,2]
[424864716,1781213444000,-521.0,0.00033657,16]
[424864718,1781213444000,-1570.0,0.00033699,30]
[424864721,1781213444000,-2274.84027005,0.0003375,2]
[424864717,1781213444000,-385.21502296,0.00033658,4]
[424864720,1781213444000,-3643.0,0.00033725,2]
[424864711,1781213444000,-772.23169,0.00033477,120]
[424864723,1781213444000,-199.0,0.000338,30]
[424864728,1781213444000,-160.76412737,0.000339,120]
[424864724,1781213444000,-342.14413463,0.00033842,60]
[424864725,1781213444000,-500.0,0.00033842,60]
[424864727,1781213444000,-187.69831663,0.000339,120]
[424864726,1781213444000,-1322.24148291,0.000339,120]
[424864731,1781213444000,-362.71485314,0.000339,120]
[424864730,1781213444000,-426.29450614,0.000339,120]
[424864732,1781213444000,-183.35346164,0.000339,120]
[424864733,1781213444000,-387.77751763,0.000339,120]
[424864685,1781213444000,-644.87356391,0.00033,120]
[424864729,1781213444000,-328.075539,0.000339,120]
[424864709,1781213444000,-1570.0,0.00033425,30]
[424864722,1781213444000,-755.067506,0.00033777,120]
[424864706,1781213444000,-461.39,0.00033383,7]
[424864708,1781213444000,-12103.0,0.00033404,10]
[424864684,1781213444000,-167.76592613,0.00033,120]
[424864687,1781213444000,-367.36,0.00033014,5]
[424864686,1781213444000,-215.95576085,0.00033,10]
[424864689,1781213444000,-1000.0,0.00033061,120]
[424864691,1781213444000,-364.0,0.00033149,30]
[424864692,1781213444000,-389.0,0.00033149,30]
[424864694,1781213444000,-269.0,0.00033149,30]
[424864690,1781213444000,-152.0,0.00033149,30]
[424864696,1781213444000,-1570.0,0.00033151,30]
[424864697,1781213444000,-802.0,0.00033154,30]
[424864693,1781213444000,-248.0,0.00033149,30]
[424864695,1781213444000,-345.0,0.00033149,30]
[424864698,1781213444000,-1292.0,0.00033154,30]
[424864699,1781213444000,-241.0,0.00033154,30]
[424864701,1781213444000,-472.0,0.00033154,30]
[424864700,1781213444000,-199.0,0.00033154,30]
[424864705,1781213444000,-4055.67,0.00033192,120]
[424864703,1781213444000,-279.0,0.00033154,30]
[424864707,1781213444000,-215.0,0.00033404,3]
[424864710,1781213444000,-150.334759,0.00033476,2]
[424864702,1781213444000,-260.0,0.00033154,30]
[424864704,1781213444000,-789.635933,0.00033177,120]
[424864749,1781213445000,-690.38813993,0.00034,30]
[424864751,1781213445000,-690.38813993,0.00034,60]
[424864750,1781213445000,-690.38813993,0.00034,60]
[424864752,1781213445000,-690.38813993,0.00034,60]
[424864753,1781213445000,-215.95576085,0.00034,30]
[424864755,1781213445000,-150.0,0.00034002,2]
[424864758,1781213445000,-1274.0,0.00034102,2]
[424864757,1781213445000,-382.0,0.00034102,2]
[424864759,1781213445000,-1227.0,0.00034102,2]
[424864746,1781213445000,-690.38813993,0.00034,30]
[424864754,1781213445000,-215.95576085,0.00034,10]
[424864747,1781213445000,-690.38813993,0.00034,30]
[424864735,1781213445000,-172.54293024,0.000339,120]
[424864745,1781213445000,-690.38813993,0.00034,30]
[424864742,1781213445000,-3108.7468654,0.00033988,2]
[424864744,1781213445000,-690.38813993,0.00034,30]
[424864743,1781213445000,-177.02259997,0.00034,60]
[424864741,1781213445000,-1570.0,0.00033973,30]
[424864738,1781213445000,-4055.67,0.00033932,120]
[424864734,1781213445000,-174.25490651,0.000339,120]
[424864739,1781213445000,-299.2079576,0.00033947,2]
[424864740,1781213445000,-362.19,0.00033973,5]
[424864736,1781213445000,-167.76592613,0.000339,120]
[424864737,1781213445000,-644.87356391,0.000339,120]
[424864760,1781213445000,-153.0,0.00034149,30]
[424864748,1781213445000,-690.38813993,0.00034,30]
[424864761,1781213445000,-364.0,0.00034149,30]
[424864756,1781213445000,-738.14338,0.00034078,120]
[424864763,1781213445000,-248.0,0.00034149,30]
[424864789,1781213445000,-300.0,0.00034475,2]
[424864764,1781213445000,-269.0,0.00034149,30]
[424864788,1781213445000,-300.0,0.00034475,2]
[424864787,1781213445000,-202.8,0.00034471,120]
[424864786,1781213445000,-407.0,0.00034453,2]
[424864785,1781213445000,-407.0,0.00034453,2]
[424864783,1781213445000,-10624.1020305,0.0003442,2]
[424864782,1781213445000,-214.4827542,0.00034391,2]
[424864781,1781213445000,-854.646044,0.00034378,120]
[424864778,1781213445000,-521.0,0.00034283,17]
[424864774,1781213445000,-167.46807175,0.00034186,2]
[424864777,1781213445000,-1570.0,0.00034247,30]
[424864776,1781213445000,-308.77,0.00034246,30]
[424864784,1781213445000,-407.0,0.00034453,2]
[424864779,1781213445000,-151.5330978,0.00034348,2]
[424864780,1781213445000,-11376.9122646,0.00034348,2]
[424864765,1781213445000,-345.0,0.00034149,30]
[424864762,1781213445000,-389.0,0.00034149,30]
[424864769,1781213445000,-199.0,0.00034154,30]
[424864767,1781213445000,-1292.0,0.00034154,30]
[424864768,1781213445000,-241.0,0.00034154,30]
[424864766,1781213445000,-802.0,0.00034154,30]
[424864771,1781213445000,-260.0,0.00034154,30]
[424864773,1781213445000,-1054.6,0.00034182,7]
[424864772,1781213445000,-279.0,0.00034154,30]
[424864775,1781213445000,-483.52,0.00034212,7]
[424864770,1781213445000,-472.0,0.00034154,30]
[424864827,1781213446000,-302.76104972,0.00034475,2]
[424864828,1781213446000,-300.0,0.00034475,2]
[424864829,1781213446000,-300.5481852,0.00034475,2]
[424864823,1781213446000,-300.0,0.00034475,2]
[424864820,1781213446000,-300.0,0.00034475,2]
[424864824,1781213446000,-314.40827144,0.00034475,2]
[424864822,1781213446000,-535.71068605,0.00034475,2]
[424864821,1781213446000,-300.0,0.00034475,2]
[424864844,1781213446000,-867.43380422,0.00034475,2]
[424864825,1781213446000,-728.64234087,0.00034475,2]
[424864830,1781213446000,-301.53549973,0.00034475,2]
[424864833,1781213446000,-300.0,0.00034475,2]
[424864834,1781213446000,-300.0,0.00034475,2]
[424864836,1781213446000,-300.0,0.00034475,2]
[424864831,1781213446000,-300.0,0.00034475,2]